[Event "Live Chess"]
[Site "Chess.com"]
[Date "2023.05.20"]
[Round "-"]
[White "McSlash1"]
[Black "gregor1903"]
[Result "1-0"]
[WhiteElo "2059"]
[BlackElo "1562"]
[TimeControl "300"]
[EndTime "13:06:35 PDT"]
[Termination "McSlash1 won by checkmate"]

1. e4 {[%clk 0:04:59.4]} 1... c5 {[%clk 0:04:57.3]} 2. Nf3 {[%clk 0:04:57.5]}
2... Nc6 {[%clk 0:04:56]} 3. d4 {[%clk 0:04:57]} 3... cxd4 {[%clk 0:04:55.2]} 4.
Nxd4 {[%clk 0:04:56.9]} 4... g6 {[%clk 0:04:54.2]} 5. Nxc6 {[%clk 0:04:56]} 5...
bxc6 {[%clk 0:04:54.1]} 6. Qd4 {[%clk 0:04:53.9]} 6... Nf6 {[%clk 0:04:39.7]} 7.
Nc3 {[%clk 0:04:44.8]} 7... d6 {[%clk 0:04:37.2]} 8. Bg5 {[%clk 0:04:41.6]} 8...
Bg7 {[%clk 0:04:35.5]} 9. Qd2 {[%clk 0:04:41]} 9... Qb6 {[%clk 0:04:09.4]} 10.
Rd1 {[%clk 0:04:28.5]} 10... Bb7 {[%clk 0:03:58.2]} 11. g3 {[%clk 0:04:21.8]}
11... Ng4 {[%clk 0:03:46.4]} 12. Bh3 {[%clk 0:04:06.5]} 12... Ne5 {[%clk
0:03:09.9]} 13. Bg2 {[%clk 0:03:52.6]} 13... h6 {[%clk 0:03:08.5]} 14. Bf4
{[%clk 0:03:45.5]} 14... g5 {[%clk 0:03:05.4]} 15. Be3 {[%clk 0:03:41.2]} 15...
Qc7 {[%clk 0:02:50.5]} 16. O-O {[%clk 0:03:37]} 16... Ba6 {[%clk 0:02:41.5]} 17.
Rfe1 {[%clk 0:03:31.1]} 17... g4 {[%clk 0:02:27.3]} 18. Bd4 {[%clk 0:03:21.6]}
18... h5 {[%clk 0:02:22.7]} 19. Qg5 {[%clk 0:02:52.8]} 19... Bf6 {[%clk
0:02:09.1]} 20. Qf4 {[%clk 0:02:50.3]} 20... h4 {[%clk 0:01:56.6]} 21. Bxe5
{[%clk 0:02:41.1]} 21... Bxe5 {[%clk 0:01:52.4]} 22. Qxg4 {[%clk 0:02:38.8]}
22... Bc8 {[%clk 0:01:43.3]} 23. Qe2 {[%clk 0:02:29.7]} 23... hxg3 {[%clk
0:01:31]} 24. hxg3 {[%clk 0:02:29.6]} 24... Bh3 {[%clk 0:01:26.4]} 25. f4 {[%clk
0:02:27.6]} 25... Bf6 {[%clk 0:01:14.2]} 26. e5 {[%clk 0:02:23.3]} 26... dxe5
{[%clk 0:01:12]} 27. fxe5 {[%clk 0:02:22.1]} 27... Bg5 {[%clk 0:01:07.6]} 28.
Bxh3 {[%clk 0:02:11.4]} 28... Rxh3 {[%clk 0:01:05.1]} 29. Qg4 {[%clk 0:02:10.9]}
29... Qb6+ {[%clk 0:00:57]} 30. Kg2 {[%clk 0:02:06.4]} 30... Rh2+ {[%clk
0:00:35.8]} 31. Kxh2 {[%clk 0:02:03.9]} 31... Qf2+ {[%clk 0:00:34.5]} 32. Kh3
{[%clk 0:02:02.4]} 32... Bh6 {[%clk 0:00:15.9]} 33. Qg8+ {[%clk 0:01:53.4]}
33... Bf8 {[%clk 0:00:12.9]} 34. Rf1 {[%clk 0:01:52.2]} 34... Qc5 {[%clk
0:00:09.8]} 35. Qxf7# {[%clk 0:01:47.9]} 1-0

[Event "Live Chess"]
[Site "Chess.com"]
[Date "2023.05.20"]
[Round "-"]
[White "djw60"]
[Black "raminguy"]
[Result "1-0"]
[WhiteElo "2131"]
[BlackElo "1962"]
[TimeControl "300"]
[EndTime "13:06:40 PDT"]
[Termination "djw60 won by checkmate"]

1. Nf3 {[%clk 0:04:58.5]} 1... Nf6 {[%clk 0:04:58.6]} 2. d3 {[%clk 0:04:56.5]}
2... e6 {[%clk 0:04:58.1]} 3. e4 {[%clk 0:04:55.3]} 3... d5 {[%clk 0:04:55.8]}
4. Nbd2 {[%clk 0:04:54.2]} 4... dxe4 {[%clk 0:04:54.3]} 5. dxe4 {[%clk
0:04:52.8]} 5... Bc5 {[%clk 0:04:51.9]} 6. Bc4 {[%clk 0:04:50.9]} 6... O-O
{[%clk 0:04:50.5]} 7. O-O {[%clk 0:04:49.7]} 7... Nc6 {[%clk 0:04:45.6]} 8. c3
{[%clk 0:04:42.6]} 8... a5 {[%clk 0:04:42.9]} 9. e5 {[%clk 0:04:39.9]} 9... Ng4
{[%clk 0:04:36.2]} 10. Qe2 {[%clk 0:04:38.4]} 10... Rb8 {[%clk 0:03:58.4]} 11.
h3 {[%clk 0:04:35.9]} 11... Nh6 {[%clk 0:03:56.7]} 12. Ne4 {[%clk 0:04:34.5]}
12... Be7 {[%clk 0:03:48.7]} 13. Rd1 {[%clk 0:04:21.6]} 13... Qe8 {[%clk
0:03:45]} 14. Bxh6 {[%clk 0:04:03.4]} 14... gxh6 {[%clk 0:03:44.9]} 15. Nf6+
{[%clk 0:04:02.2]} 15... Bxf6 {[%clk 0:03:41.9]} 16. exf6 {[%clk 0:04:02.1]}
16... Kh8 {[%clk 0:03:40.1]} 17. Bb5 {[%clk 0:03:54.2]} 17... Rg8 {[%clk
0:03:37.7]} 18. Ne5 {[%clk 0:03:53.1]} 18... Rg5 {[%clk 0:03:27.8]} 19. Bxc6
{[%clk 0:03:45.9]} 19... bxc6 {[%clk 0:03:26.4]} 20. h4 {[%clk 0:03:35.9]} 20...
Rg8 {[%clk 0:03:01.5]} 21. Rd8 {[%clk 0:03:29.5]} 21... Ba6 {[%clk 0:02:50.2]}
22. Rxe8 {[%clk 0:03:23.8]} 22... Bxe2 {[%clk 0:02:48.6]} 23. Nxf7# {[%clk
0:03:22.6]} 1-0

[Event "Live Chess"]
[Site "Chess.com"]
[Date "2023.05.20"]
[Round "-"]
[White "Ninifu"]
[Black "chessfiction"]
[Result "0-1"]
[WhiteElo "2017"]
[BlackElo "2422"]
[TimeControl "300"]
[EndTime "13:06:41 PDT"]
[Termination "chessfiction won on time"]

1. d4 {[%clk 0:04:55.7]} 1... d5 {[%clk 0:04:57.4]} 2. c4 {[%clk 0:04:54.4]}
2... c6 {[%clk 0:04:56.7]} 3. Nf3 {[%clk 0:04:52.9]} 3... Nf6 {[%clk 0:04:56.3]}
4. Nc3 {[%clk 0:04:51.7]} 4... e6 {[%clk 0:04:54.2]} 5. g3 {[%clk 0:04:50.3]}
5... dxc4 {[%clk 0:04:53]} 6. Bg2 {[%clk 0:04:49.4]} 6... b5 {[%clk 0:04:52.2]}
7. O-O {[%clk 0:04:44.8]} 7... Bb7 {[%clk 0:04:51.4]} 8. e4 {[%clk 0:04:40.8]}
8... a6 {[%clk 0:04:50.8]} 9. Qe2 {[%clk 0:04:34.6]} 9... Nbd7 {[%clk
0:04:49.9]} 10. Rd1 {[%clk 0:04:20.8]} 10... Bb4 {[%clk 0:04:45.1]} 11. a3
{[%clk 0:04:16]} 11... Bxc3 {[%clk 0:04:41.7]} 12. bxc3 {[%clk 0:04:14.1]} 12...
O-O {[%clk 0:04:41.3]} 13. e5 {[%clk 0:03:34.8]} 13... Nd5 {[%clk 0:04:39.3]}
14. Bd2 {[%clk 0:03:34]} 14... N7b6 {[%clk 0:04:37.8]} 15. Ng5 {[%clk
0:03:28.4]} 15... h6 {[%clk 0:04:35.9]} 16. Ne4 {[%clk 0:03:22.1]} 16... Na4
{[%clk 0:04:34.7]} 17. Rac1 {[%clk 0:03:05.7]} 17... Nb2 {[%clk 0:04:31.8]} 18.
Rf1 {[%clk 0:02:54.1]} 18... Nd3 {[%clk 0:04:30]} 19. Rc2 {[%clk 0:02:53.4]}
19... Qa5 {[%clk 0:04:15.3]} 20. Qh5 {[%clk 0:02:49.9]} 20... f5 {[%clk
0:03:55.2]} 21. Nd6 {[%clk 0:02:23.9]} 21... Qc7 {[%clk 0:03:46.4]} 22. Qg6
{[%clk 0:02:14.8]} 22... Kh8 {[%clk 0:03:43.1]} 23. Bxh6 {[%clk 0:02:04.4]}
23... gxh6 {[%clk 0:03:41.5]} 24. Qxh6+ {[%clk 0:02:03.3]} 24... Qh7 {[%clk
0:03:39.8]} 25. Qxh7+ {[%clk 0:01:59.2]} 25... Kxh7 {[%clk 0:03:39.7]} 26. Nxb7
{[%clk 0:01:58.3]} 26... f4 {[%clk 0:03:33.4]} 27. gxf4 {[%clk 0:01:39.5]} 27...
N5xf4 {[%clk 0:03:30.9]} 28. f3 {[%clk 0:01:36.8]} 28... Rg8 {[%clk 0:03:29.9]}
29. Kh1 {[%clk 0:01:26.9]} 29... Ra7 {[%clk 0:03:28.5]} 30. Nc5 {[%clk 0:01:16]}
30... Rag7 {[%clk 0:03:20.8]} 31. Rg1 {[%clk 0:01:10.9]} 31... Nh3 {[%clk
0:03:09.3]} 32. Rf1 {[%clk 0:01:03.7]} 32... Nhf4 {[%clk 0:02:59.4]} 33. Rg1
{[%clk 0:00:59.8]} 33... Nxc5 {[%clk 0:02:53.4]} 34. dxc5 {[%clk 0:00:58.3]}
34... Nd3 {[%clk 0:02:52.8]} 35. Rf1 {[%clk 0:00:45.1]} 35... Nxc5 {[%clk
0:02:47.5]} 36. f4 {[%clk 0:00:44.1]} 36... Nd3 {[%clk 0:02:46.7]} 37. Be4+
{[%clk 0:00:33.1]} 37... Kh6 {[%clk 0:02:45.3]} 38. Rg2 {[%clk 0:00:28.5]} 38...
Rxg2 {[%clk 0:02:39.8]} 39. Bxg2 {[%clk 0:00:27]} 39... c5 {[%clk 0:02:38.3]}
40. Be4 {[%clk 0:00:21.5]} 40... Rg4 {[%clk 0:02:31]} 41. h3 {[%clk 0:00:16.4]}
41... Rh4 {[%clk 0:02:25.9]} 42. Kh2 {[%clk 0:00:10.2]} 42... Nxf4 {[%clk
0:02:22.4]} 43. Rf3 {[%clk 0:00:08]} 43... Kg5 {[%clk 0:02:21.1]} 44. Bb7 {[%clk
0:00:06.1]} 44... Rh7 {[%clk 0:02:17.6]} 45. Bxa6 {[%clk 0:00:04.8]} 45... Nd3
{[%clk 0:02:12.7]} 46. Bxb5 {[%clk 0:00:03.8]} 46... Nxe5 {[%clk 0:02:12.4]} 47.
Rg3+ {[%clk 0:00:00.9]} 47... Kf4 {[%clk 0:02:11.8]} 0-1

[Event "Live Chess"]
[Site "Chess.com"]
[Date "2023.05.20"]
[Round "-"]
[White "MaksSem"]
[Black "onemoretime1975"]
[Result "1-0"]
[WhiteElo "1420"]
[BlackElo "1892"]
[TimeControl "300"]
[EndTime "13:06:43 PDT"]
[Termination "MaksSem won by checkmate"]

1. e4 {[%clk 0:04:58.3]} 1... e6 {[%clk 0:04:57.5]} 2. d4 {[%clk 0:04:56.9]}
2... d5 {[%clk 0:04:56.4]} 3. Nc3 {[%clk 0:04:53.7]} 3... Nf6 {[%clk 0:04:54.1]}
4. e5 {[%clk 0:04:52.4]} 4... Nfd7 {[%clk 0:04:52.4]} 5. Nf3 {[%clk 0:04:50.5]}
5... a6 {[%clk 0:04:51.2]} 6. Bd3 {[%clk 0:04:45.4]} 6... c5 {[%clk 0:04:49.7]}
7. dxc5 {[%clk 0:04:43.2]} 7... Nxc5 {[%clk 0:04:43.2]} 8. O-O {[%clk
0:04:41.1]} 8... Nc6 {[%clk 0:04:41.3]} 9. a3 {[%clk 0:04:32.9]} 9... Be7 {[%clk
0:04:37.8]} 10. Be3 {[%clk 0:04:28.1]} 10... d4 {[%clk 0:04:24.5]} 11. Nxd4
{[%clk 0:04:10.1]} 11... Nxd4 {[%clk 0:04:21.8]} 12. Bxd4 {[%clk 0:04:07.5]}
12... Nxd3 {[%clk 0:04:09.7]} 13. Qxd3 {[%clk 0:04:03.7]} 13... O-O {[%clk
0:04:07.8]} 14. Be3 {[%clk 0:03:43.9]} 14... Qc7 {[%clk 0:04:02.9]} 15. Rad1
{[%clk 0:03:32.1]} 15... b5 {[%clk 0:04:00.1]} 16. Qe4 {[%clk 0:03:17.8]} 16...
Bb7 {[%clk 0:03:57.7]} 17. Qf4 {[%clk 0:03:14.6]} 17... Rfd8 {[%clk 0:03:51.5]}
18. Qg3 {[%clk 0:02:24]} 18... b4 {[%clk 0:03:35.5]} 19. Bh6 {[%clk 0:02:08.7]}
19... g6 {[%clk 0:03:33.2]} 20. axb4 {[%clk 0:02:01]} 20... Bxb4 {[%clk
0:03:30.6]} 21. Qf4 {[%clk 0:01:40.3]} 21... Be7 {[%clk 0:03:22]} 22. h4 {[%clk
0:01:26.8]} 22... Qc6 {[%clk 0:03:16.7]} 23. f3 {[%clk 0:01:15.6]} 23... Qb6+
{[%clk 0:02:49.7]} 24. Kh1 {[%clk 0:01:10.2]} 24... Qxb2 {[%clk 0:02:46.4]} 25.
Rxd8+ {[%clk 0:01:05]} 25... Rxd8 {[%clk 0:02:38.9]} 26. Ne4 {[%clk 0:01:01.6]}
26... Bxe4 {[%clk 0:02:30.1]} 27. fxe4 {[%clk 0:00:59.9]} 27... Rf8 {[%clk
0:02:14.7]} 28. Bxf8 {[%clk 0:00:52.4]} 28... Bxf8 {[%clk 0:02:07.3]} 29. Qxf7+
{[%clk 0:00:51.4]} 29... Kh8 {[%clk 0:02:05.6]} 30. Qxf8# {[%clk 0:00:50.6]} 1-0

[Event "Live Chess"]
[Site "Chess.com"]
[Date "2023.05.20"]
[Round "-"]
[White "DenDenTie"]
[Black "SupremeTactician"]
[Result "0-1"]
[WhiteElo "689"]
[BlackElo "2377"]
[TimeControl "300"]
[EndTime "13:06:46 PDT"]
[Termination "SupremeTactician won by resignation"]

1. e4 {[%clk 0:04:56.2]} 1... e5 {[%clk 0:04:58.7]} 2. Nf3 {[%clk 0:04:52.3]}
2... Nc6 {[%clk 0:04:58.3]} 3. Nc3 {[%clk 0:04:49.9]} 3... Nf6 {[%clk
0:04:56.9]} 4. Bc4 {[%clk 0:04:48.7]} 4... Bc5 {[%clk 0:04:56]} 5. d3 {[%clk
0:04:47]} 5... O-O {[%clk 0:04:55]} 6. Be3 {[%clk 0:04:46.6]} 6... Bxe3 {[%clk
0:04:53.8]} 7. fxe3 {[%clk 0:04:46.3]} 7... d6 {[%clk 0:04:52.4]} 8. d4 {[%clk
0:04:45.9]} 8... exd4 {[%clk 0:04:51.1]} 9. exd4 {[%clk 0:04:44.9]} 9... Nxe4
{[%clk 0:04:50.7]} 10. d5 {[%clk 0:04:44.7]} 10... Nxc3 {[%clk 0:04:49.3]} 11.
bxc3 {[%clk 0:04:43.4]} 11... Re8+ {[%clk 0:04:48.4]} 12. Be2 {[%clk 0:04:40]}
12... Ne5 {[%clk 0:04:46.1]} 13. Kf1 {[%clk 0:04:37.8]} 13... Nxf3 {[%clk
0:04:44.4]} 14. Bxf3 {[%clk 0:04:35.9]} 14... Qf6 {[%clk 0:04:43.4]} 15. Kf2
{[%clk 0:04:34.6]} 15... Qxc3 {[%clk 0:04:41.8]} 16. Rf1 {[%clk 0:04:32]} 16...
Qc5+ {[%clk 0:04:40]} 17. Kg3 {[%clk 0:04:26.5]} 17... Bf5 {[%clk 0:04:39.6]}
18. h3 {[%clk 0:04:24.4]} 18... Bxc2 {[%clk 0:04:36.2]} 19. Qc1 {[%clk 0:04:23]}
19... Bg6 {[%clk 0:04:35.3]} 20. Kh2 {[%clk 0:04:21.9]} 20... b6 {[%clk
0:04:31.3]} 21. Kh1 {[%clk 0:04:19.1]} 21... Re3 {[%clk 0:04:28.7]} 22. Re1
{[%clk 0:04:06.7]} 22... Qxc1 {[%clk 0:04:26.7]} 23. Raxc1 {[%clk 0:04:04.2]}
23... Rxe1+ {[%clk 0:04:21.9]} 24. Rxe1 {[%clk 0:04:01.2]} 24... Kf8 {[%clk
0:04:20.5]} 25. Rc1 {[%clk 0:03:53.8]} 25... Rc8 {[%clk 0:04:19.3]} 26. a4
{[%clk 0:03:48]} 26... a5 {[%clk 0:04:14.5]} 27. g4 {[%clk 0:03:42.4]} 27... f6
{[%clk 0:04:11.6]} 28. Rf1 {[%clk 0:01:53.5]} 28... Re8 {[%clk 0:03:42.2]} 29.
Bg2 {[%clk 0:01:35.2]} 29... Be4 {[%clk 0:03:39.8]} 30. g5 {[%clk 0:01:30]}
30... Bxg2+ {[%clk 0:03:38]} 31. Kxg2 {[%clk 0:01:24.2]} 31... Re5 {[%clk
0:03:33.1]} 32. gxf6 {[%clk 0:01:19.7]} 32... gxf6 {[%clk 0:03:33]} 33. Rxf6+
{[%clk 0:01:17.3]} 33... Kg7 {[%clk 0:03:32.2]} 34. Rf3 {[%clk 0:01:15.7]} 34...
Rxd5 {[%clk 0:03:31.3]} 35. Rg3+ {[%clk 0:01:13.3]} 35... Kf6 {[%clk 0:03:29.8]}
36. h4 {[%clk 0:01:02.4]} 36... Rd2+ {[%clk 0:03:26.8]} 37. Kh3 {[%clk
0:00:59.6]} 37... d5 {[%clk 0:03:26]} 38. h5 {[%clk 0:00:56.9]} 38... d4 {[%clk
0:03:24.1]} 39. h6 {[%clk 0:00:55.5]} 39... Rc2 {[%clk 0:03:21.5]} 40. Rg7
{[%clk 0:00:54.2]} 40... d3 {[%clk 0:03:20.2]} 41. Rxh7 {[%clk 0:00:52.9]} 41...
Kg6 {[%clk 0:03:19.7]} 42. Kg4 {[%clk 0:00:26.9]} 42... Kxh7 {[%clk 0:03:17.3]}
43. Kg5 {[%clk 0:00:24.7]} 43... d2 {[%clk 0:03:16.3]} 0-1

[Event "Live Chess"]
[Site "Chess.com"]
[Date "2023.05.20"]
[Round "-"]
[White "toog"]
[Black "omisoc"]
[Result "1-0"]
[WhiteElo "2614"]
[BlackElo "2140"]
[TimeControl "300"]
[EndTime "13:06:54 PDT"]
[Termination "toog won on time"]

1. d4 {[%clk 0:04:56.5]} 1... b6 {[%clk 0:04:56.7]} 2. e4 {[%clk 0:04:54.4]}
2... e6 {[%clk 0:04:54.5]} 3. Bd3 {[%clk 0:04:52.5]} 3... Bb7 {[%clk 0:04:54.2]}
4. Nf3 {[%clk 0:04:47.2]} 4... d5 {[%clk 0:04:49.6]} 5. e5 {[%clk 0:04:41.5]}
5... c5 {[%clk 0:04:48.6]} 6. c3 {[%clk 0:04:40.5]} 6... Ne7 {[%clk 0:04:42.3]}
7. O-O {[%clk 0:04:39]} 7... Qd7 {[%clk 0:04:40.3]} 8. Re1 {[%clk 0:04:37.4]}
8... Ng6 {[%clk 0:04:33.8]} 9. h4 {[%clk 0:04:34.8]} 9... h6 {[%clk 0:04:27.1]}
10. h5 {[%clk 0:04:33.7]} 10... Ne7 {[%clk 0:04:25.9]} 11. a3 {[%clk 0:04:32.4]}
11... a5 {[%clk 0:04:22.7]} 12. a4 {[%clk 0:04:27.6]} 12... Ba6 {[%clk
0:04:19.3]} 13. Bc2 {[%clk 0:04:26.6]} 13... Nbc6 {[%clk 0:04:16.8]} 14. Na3
{[%clk 0:04:25.1]} 14... cxd4 {[%clk 0:04:11.7]} 15. cxd4 {[%clk 0:04:23.1]}
15... Nb4 {[%clk 0:04:10.5]} 16. Bb1 {[%clk 0:04:22.1]} 16... g6 {[%clk
0:04:02.8]} 17. Nb5 {[%clk 0:04:19.5]} 17... Bxb5 {[%clk 0:03:57.1]} 18. axb5
{[%clk 0:04:19.4]} 18... Qxb5 {[%clk 0:03:54.1]} 19. Bd2 {[%clk 0:04:15.5]}
19... Nf5 {[%clk 0:03:45.6]} 20. hxg6 {[%clk 0:04:13.3]} 20... fxg6 {[%clk
0:03:44]} 21. Bxb4 {[%clk 0:04:01.8]} 21... Bxb4 {[%clk 0:03:39.5]} 22. Bc2
{[%clk 0:04:01.1]} 22... O-O {[%clk 0:03:28.8]} 23. Re2 {[%clk 0:03:57.7]} 23...
Qd7 {[%clk 0:03:19.4]} 24. Nh2 {[%clk 0:03:55]} 24... Be7 {[%clk 0:03:14.2]} 25.
Ng4 {[%clk 0:03:52.9]} 25... h5 {[%clk 0:03:11.9]} 26. Nf6+ {[%clk 0:03:49]}
26... Bxf6 {[%clk 0:03:10.5]} 27. exf6 {[%clk 0:03:48.9]} 27... Rxf6 {[%clk
0:03:09.4]} 28. Re5 {[%clk 0:03:48.4]} 28... Raf8 {[%clk 0:03:04.9]} 29. Qd2
{[%clk 0:03:46.7]} 29... Kg7 {[%clk 0:03:03.7]} 30. Rae1 {[%clk 0:03:44.8]}
30... Qd6 {[%clk 0:02:51.8]} 31. Bxf5 {[%clk 0:03:20.2]} 31... gxf5 {[%clk
0:02:21.1]} 32. Qg5+ {[%clk 0:03:18.5]} 32... Rg6 {[%clk 0:02:19.2]} 33. Qxh5
{[%clk 0:03:16.8]} 33... Rff6 {[%clk 0:02:09.1]} 34. Rc1 {[%clk 0:03:11]} 34...
f4 {[%clk 0:01:59]} 35. Rc8 {[%clk 0:03:07.7]} 35... Rf8 {[%clk 0:01:53.9]} 36.
Rg5 {[%clk 0:02:57.1]} 36... Rxg5 {[%clk 0:01:45.9]} 37. Qxg5+ {[%clk 0:02:57]}
37... Kf7 {[%clk 0:01:44.9]} 38. Qh5+ {[%clk 0:02:50.4]} 38... Kg7 {[%clk
0:01:44.1]} 39. Qg5+ {[%clk 0:02:29.6]} 39... Kf7 {[%clk 0:01:42.2]} 40. Rc3
{[%clk 0:02:28.2]} 40... Rg8 {[%clk 0:01:28.8]} 41. Qh5+ {[%clk 0:02:26.8]}
41... Ke7 {[%clk 0:01:27]} 42. Qh4+ {[%clk 0:02:25.2]} 42... Kf7 {[%clk
0:01:21.9]} 43. Rf3 {[%clk 0:02:23.2]} 43... Qe7 {[%clk 0:01:17.2]} 44. Rxf4+
{[%clk 0:02:22]} 44... Ke8 {[%clk 0:01:16.2]} 45. Qh5+ {[%clk 0:02:21]} 45...
Kd8 {[%clk 0:01:14.5]} 46. Rf7 {[%clk 0:02:19.5]} 46... Qg5 {[%clk 0:01:13.1]}
47. Qxg5+ {[%clk 0:02:10.6]} 47... Rxg5 {[%clk 0:01:11.5]} 48. Rb7 {[%clk
0:02:10.1]} 48... Rg4 {[%clk 0:01:08.7]} 49. Rxb6 {[%clk 0:02:09.2]} 49... Kd7
{[%clk 0:01:03.7]} 50. b4 {[%clk 0:02:02.2]} 50... axb4 {[%clk 0:00:38.9]} 51.
Rxb4 {[%clk 0:02:02.1]} 51... Kc6 {[%clk 0:00:28.1]} 52. f3 {[%clk 0:02:00.3]}
52... Rg8 {[%clk 0:00:25.3]} 53. Kf2 {[%clk 0:01:59.3]} 53... Ra8 {[%clk
0:00:22]} 54. Rb2 {[%clk 0:01:55.3]} 54... Ra4 {[%clk 0:00:19.6]} 55. Ke3 {[%clk
0:01:53.9]} 55... Kd6 {[%clk 0:00:18.1]} 56. Rd2 {[%clk 0:01:50.4]} 56... Ra3+
{[%clk 0:00:17]} 57. Kf4 {[%clk 0:01:49.3]} 57... Ra4 {[%clk 0:00:14.4]} 58. g4
{[%clk 0:01:47.6]} 58... e5+ {[%clk 0:00:07.1]} 59. Ke3 {[%clk 0:01:23.4]} 59...
Ke6 {[%clk 0:00:05]} 60. dxe5 {[%clk 0:01:22.1]} 60... Kxe5 {[%clk 0:00:03.9]}
61. f4+ {[%clk 0:01:18.6]} 1-0

[Event "Live Chess"]
[Site "Chess.com"]
[Date "2023.05.20"]
[Round "-"]
[White "f4nomore"]
[Black "Jeffaroow"]
[Result "1-0"]
[WhiteElo "1364"]
[BlackElo "468"]
[TimeControl "300"]
[EndTime "13:07:01 PDT"]
[Termination "f4nomore won by checkmate"]

1. d4 {[%clk 0:04:58.2]} 1... d5 {[%clk 0:04:44.8]} 2. Bg5 {[%clk 0:04:54.3]}
2... Nc6 {[%clk 0:04:29]} 3. c3 {[%clk 0:04:52.4]} 3... f6 {[%clk 0:04:24.8]} 4.
Bh4 {[%clk 0:04:49.7]} 4... e5 {[%clk 0:04:22.6]} 5. e3 {[%clk 0:04:45.4]} 5...
Be7 {[%clk 0:04:07.5]} 6. Bb5 {[%clk 0:04:43.2]} 6... Bd7 {[%clk 0:04:03.6]} 7.
Ne2 {[%clk 0:04:39.9]} 7... Nh6 {[%clk 0:04:01.8]} 8. O-O {[%clk 0:04:36.3]}
8... O-O {[%clk 0:03:58.6]} 9. Nd2 {[%clk 0:04:26.9]} 9... a6 {[%clk 0:03:56.3]}
10. Bxc6 {[%clk 0:04:25.1]} 10... Bxc6 {[%clk 0:03:55.2]} 11. Bg3 {[%clk
0:04:09.6]} 11... Nf7 {[%clk 0:03:50.2]} 12. Nf3 {[%clk 0:04:04.5]} 12... e4
{[%clk 0:03:44.4]} 13. Nd2 {[%clk 0:04:03]} 13... Ng5 {[%clk 0:03:39.1]} 14. f4
{[%clk 0:03:48.2]} 14... exf3 {[%clk 0:03:37.5]} 15. Nxf3 {[%clk 0:03:46.7]}
15... Nxf3+ {[%clk 0:03:35.6]} 16. Rxf3 {[%clk 0:03:44.5]} 16... Bd6 {[%clk
0:03:26.3]} 17. Nf4 {[%clk 0:03:40]} 17... Re8 {[%clk 0:03:07.5]} 18. Qf1 {[%clk
0:03:32.1]} 18... g5 {[%clk 0:03:03.4]} 19. Nh5 {[%clk 0:03:25.2]} 19... Kh8
{[%clk 0:02:43.4]} 20. Nxf6 {[%clk 0:03:11.8]} 20... Rf8 {[%clk 0:02:33]} 21.
Ng4 {[%clk 0:02:28.6]} 21... Bxg3 {[%clk 0:02:22.6]} 22. hxg3 {[%clk 0:02:26.5]}
22... Bd7 {[%clk 0:02:09.1]} 23. Ne5 {[%clk 0:02:10.5]} 23... Rxf3 {[%clk
0:01:51.3]} 24. Qxf3 {[%clk 0:02:07.9]} 24... Be6 {[%clk 0:01:39]} 25. Rf1
{[%clk 0:01:58.7]} 25... b5 {[%clk 0:01:24.8]} 26. Qh5 {[%clk 0:01:44.1]} 26...
Kg8 {[%clk 0:01:03.9]} 27. Nf7 {[%clk 0:01:09]} 27... Bxf7 {[%clk 0:00:58.9]}
28. Qxf7+ {[%clk 0:01:05.7]} 28... Kh8 {[%clk 0:00:56.8]} 29. g4 {[%clk
0:00:57.4]} 29... h6 {[%clk 0:00:46.5]} 30. Rf6 {[%clk 0:00:53.3]} 30... Qg8
{[%clk 0:00:12.8]} 31. Rxh6+ {[%clk 0:00:47.8]} 31... Qh7 {[%clk 0:00:10.9]} 32.
Qxh7# {[%clk 0:00:45.8]} 1-0

[Event "Live Chess"]
[Site "Chess.com"]
[Date "2023.05.20"]
[Round "-"]
[White "BostonStrangler"]
[Black "bristolunichess"]
[Result "0-1"]
[WhiteElo "2063"]
[BlackElo "1795"]
[TimeControl "300"]
[EndTime "13:07:13 PDT"]
[Termination "bristolunichess won by resignation"]

1. Nf3 {[%clk 0:04:58.1]} 1... Nf6 {[%clk 0:04:58.2]} 2. g3 {[%clk 0:04:56.9]}
2... d5 {[%clk 0:04:56.9]} 3. Bg2 {[%clk 0:04:56.3]} 3... c5 {[%clk 0:04:56.1]}
4. c4 {[%clk 0:04:54.8]} 4... d4 {[%clk 0:04:52.3]} 5. b4 {[%clk 0:04:53.7]}
5... cxb4 {[%clk 0:04:47.7]} 6. a3 {[%clk 0:04:52.2]} 6... bxa3 {[%clk 0:04:47]}
7. Bxa3 {[%clk 0:04:49]} 7... Nc6 {[%clk 0:04:45.2]} 8. d3 {[%clk 0:04:46.9]}
8... e5 {[%clk 0:04:42.1]} 9. Bxf8 {[%clk 0:04:44]} 9... Kxf8 {[%clk 0:04:40.9]}
10. O-O {[%clk 0:04:43.3]} 10... g6 {[%clk 0:04:40.1]} 11. Qb3 {[%clk 0:04:31]}
11... Kg7 {[%clk 0:04:36.9]} 12. Na3 {[%clk 0:04:29.6]} 12... h6 {[%clk
0:04:35]} 13. Rfb1 {[%clk 0:04:25.1]} 13... Rb8 {[%clk 0:04:05.4]} 14. Nc2
{[%clk 0:04:22.7]} 14... b6 {[%clk 0:03:58]} 15. Nb4 {[%clk 0:04:16.9]} 15...
Na5 {[%clk 0:03:56.9]} 16. Qb2 {[%clk 0:04:10.4]} 16... Re8 {[%clk 0:03:52.5]}
17. Nd5 {[%clk 0:03:46]} 17... Nxd5 {[%clk 0:03:48]} 18. Rxa5 {[%clk 0:03:39.5]}
18... Nc3 {[%clk 0:03:19.8]} 19. Re1 {[%clk 0:03:36.6]} 19... Qc7 {[%clk
0:03:15]} 20. Raa1 {[%clk 0:03:21.8]} 20... f6 {[%clk 0:03:05.9]} 21. e3 {[%clk
0:03:19.7]} 21... Bg4 {[%clk 0:02:46.1]} 22. exd4 {[%clk 0:03:10.2]} 22... Bxf3
{[%clk 0:02:44.9]} 23. Bxf3 {[%clk 0:03:08.9]} 23... exd4 {[%clk 0:02:44.2]} 24.
Rxe8 {[%clk 0:02:47.9]} 24... Rxe8 {[%clk 0:02:42]} 25. Qa3 {[%clk 0:02:46.7]}
25... a5 {[%clk 0:02:36.4]} 26. Qb3 {[%clk 0:02:34.1]} 26... h5 {[%clk
0:02:25.2]} 27. h4 {[%clk 0:02:31.5]} 27... Rb8 {[%clk 0:02:17]} 28. Re1 {[%clk
0:02:23.2]} 28... Qc5 {[%clk 0:02:12.2]} 29. Kg2 {[%clk 0:02:18.5]} 29... a4
{[%clk 0:02:10.5]} 30. Qb2 {[%clk 0:01:59.6]} 30... b5 {[%clk 0:02:03.7]} 31.
cxb5 {[%clk 0:01:45.2]} 31... Rxb5 {[%clk 0:02:02.3]} 32. Qd2 {[%clk 0:01:41.3]}
32... a3 {[%clk 0:01:42.6]} 33. g4 {[%clk 0:01:04.8]} 33... hxg4 {[%clk
0:01:33.2]} 34. Bxg4 {[%clk 0:01:02.5]} 34... a2 {[%clk 0:01:23.3]} 35. h5
{[%clk 0:00:58.4]} 35... gxh5 {[%clk 0:01:15.9]} 36. Be6 {[%clk 0:00:56.6]}
36... Qg5+ {[%clk 0:01:14.5]} 37. Qxg5+ {[%clk 0:00:44.4]} 37... Rxg5+ {[%clk
0:01:12.8]} 38. Kf3 {[%clk 0:00:30.3]} 38... Ra5 {[%clk 0:01:09.1]} 39. Ra1
{[%clk 0:00:26]} 39... Kf8 {[%clk 0:01:06.1]} 40. Bc4 {[%clk 0:00:23.7]} 40...
Ke7 {[%clk 0:01:04.2]} 41. Kf4 {[%clk 0:00:21.9]} 41... Kd6 {[%clk 0:01:02.8]}
42. f3 {[%clk 0:00:20.2]} 42... Kc5 {[%clk 0:01:00.8]} 43. Bb3 {[%clk
0:00:14.5]} 43... Kb4 {[%clk 0:00:58.4]} 44. Bc4 {[%clk 0:00:13.6]} 44... Ka3
{[%clk 0:00:56.1]} 0-1